fUSD/lending_fUSD_20250525
["ID","MTS","AMOUNT","RATE_DAILY","PERIOD"]
[362278423,1748148642626,-679.59,0.00019999,2]
[362278424,1748148642635,-534.54,0.00019999,2]
[362278425,1748148642645,-679.59,0.00019999,2]
[362278426,1748148642654,-534.54,0.00019999,2]
[362278427,1748148642664,-679.59,0.00019999,2]
[362278428,1748148642674,-534.54,0.00019999,2]
[362278429,1748148642683,-679.59,0.00019999,2]
[362278430,1748148642693,-679.62855858,0.00019999,2]
[362278431,1748148642703,-534.54,0.00019999,2]
[362278432,1748148642712,-534.54,0.00019999,2]
[362278433,1748148642723,-534.54,0.00019999,2]
[362278434,1748148642733,-534.54,0.00019999,2]
[362278435,1748148642743,-534.54,0.00019999,2]
[362278436,1748148642752,-534.54,0.00019999,2]
[362278437,1748148642762,-534.55276498,0.00019999,2]
[362278438,1748148642771,-420.0,0.00019999,2]
[362278439,1748148642786,-420.0,0.00019999,2]
[362278440,1748148642796,-420.0,0.00019999,2]
[362278441,1748148642806,-420.0,0.00019999,2]
[362278442,1748148642817,-420.0,0.00019999,2]
[362278443,1748148642829,-420.0,0.00019999,2]
[362278444,1748148642841,-420.0,0.00019999,2]
[362278445,1748148642851,-420.0,0.00019999,2]
[362278446,1748148642860,-420.0,0.00019999,2]
[362278447,1748148642870,-420.0,0.00019999,2]
[362278448,1748148642880,-281.20476375,0.00019999,2]
[362278449,1748148642890,-420.0,0.00019999,2]
[362278450,1748148642902,-420.0,0.00019999,2]
[362278451,1748148642912,-420.0,0.00019999,2]
[362278452,1748148642921,-420.0,0.00019999,2]
[362278453,1748148642931,-420.0,0.00019999,2]
[362278454,1748148642942,-420.0,0.00019999,2]
[362278455,1748148642952,-420.0,0.00019999,2]
[362278456,1748148642962,-420.0,0.00019999,2]
[362278457,1748148642971,-420.0,0.00019999,2]
[362278458,1748148642982,-420.0,0.00019999,2]
[362278459,1748148642992,-420.0,0.00019999,2]
[362278460,1748148643001,-420.0,0.00019999,2]
[362278461,1748148643011,-393.75001935,0.00019999,2]
[362278462,1748148643020,-420.0,0.00019999,2]
[362278463,1748148643030,-420.0,0.00019999,2]
[362278464,1748148643039,-420.0,0.00019999,2]
[362278465,1748148643049,-420.0,0.00019999,2]
[362278466,1748148643059,-420.0,0.00019999,2]
[362278467,1748148643069,-420.0,0.00019999,2]
[362278468,1748148643079,-420.0,0.00019999,2]
[362278469,1748148643088,-420.0,0.00019999,2]
[362278470,1748148643097,-420.0,0.00019999,2]
[362278471,1748148643106,-420.0,0.00019999,2]
[362278472,1748148643117,-420.0,0.00019999,2]
[362278473,1748148643128,-420.0,0.00019999,2]
[362278474,1748148643139,-420.0,0.00019999,2]
[362278475,1748148643150,-420.0,0.00019999,2]
[362278476,1748148643161,-420.0,0.00019999,2]
[362278477,1748148643171,-420.0,0.00019999,2]
[362278478,1748148643182,-420.0,0.00019999,2]
[362278479,1748148643193,-420.0,0.00019999,2]
[362278480,1748148643203,-420.0,0.00019999,2]
[362278481,1748148643213,-249.50562501,0.00019999,2]
[362278482,1748148643223,-717.52,0.00019999,2]
[362278483,1748148643232,-717.52,0.00019999,2]
[362278484,1748148643241,-717.52,0.00019999,2]
[362278485,1748148643252,-717.52,0.00019999,2]
[362278486,1748148643262,-717.52,0.00019999,2]
[362278487,1748148643271,-717.52,0.00019999,2]
[362278488,1748148643281,-717.52,0.00019999,2]
[362278489,1748148643290,-717.52,0.00019999,2]
[362278490,1748148643300,-717.52,0.00019999,2]
[362278491,1748148643309,-717.52,0.00019999,2]
[362278492,1748148643319,-717.52,0.00019999,2]
[362278493,1748148643328,-717.52,0.00019999,2]
[362278494,1748148643337,-717.52,0.00019999,2]
[362278495,1748148643347,-717.52,0.00019999,2]
[362278496,1748148643356,-717.52,0.00019999,2]
[362278497,1748148643366,-717.52,0.00019999,2]
[362278498,1748148643375,-717.52,0.00019999,2]
[362278499,1748148643387,-717.52,0.00019999,2]
[362278500,1748148643398,-717.52,0.00019999,2]
[362278501,1748148643409,-717.52,0.00019999,2]
[362278502,1748148643419,-717.52,0.00019999,2]
[362278503,1748148643429,-717.5833,0.00019999,2]
[362278504,1748148643441,-420.0,0.00019999,2]
[362278505,1748148643451,-420.0,0.00019999,2]
[362278506,1748148643462,-420.0,0.00019999,2]
[362278507,1748148643473,-420.0,0.00019999,2]
[362278508,1748148643483,-420.0,0.00019999,2]
[362278509,1748148643492,-420.0,0.00019999,2]
[362278510,1748148643502,-420.0,0.00019999,2]
[362278511,1748148643512,-420.0,0.00019999,2]
[362278512,1748148643523,-420.0,0.00019999,2]
[362278513,1748148643534,-464.84223542,0.00019999,2]
[362278514,1748148643545,-505.7,0.00019999,2]
[362278515,1748148643557,-505.7,0.00019999,2]
[362278516,1748148643567,-505.7,0.00019999,2]
[362278517,1748148643579,-505.7,0.00019999,2]
[362278518,1748148643590,-505.7,0.00019999,2]
[362278519,1748148643600,-505.7,0.00019999,2]
[362278520,1748148643609,-505.7,0.00019999,2]
[362278521,1748148643619,-505.7,0.00019999,2]
[362278522,1748148643628,-505.7,0.00019999,2]
[362278523,1748148643638,-505.7,0.00019999,2]
[362278524,1748148643650,-505.7,0.00019999,2]
[362278525,1748148643660,-505.7,0.00019999,2]
[362278526,1748148643671,-505.7,0.00019999,2]
[362278527,1748148643682,-505.7,0.00019999,2]
[362278528,1748148643694,-505.7,0.00019999,2]
[362278529,1748148643703,-505.7,0.00019999,2]
[362278530,1748148643713,-505.7,0.00019999,2]
[362278531,1748148643722,-505.7,0.00019999,2]
[362278532,1748148643731,-505.7,0.00019999,2]
[362278533,1748148643743,-505.7,0.00019999,2]
[362278534,1748148643752,-505.7,0.00019999,2]
[362278535,1748148643762,-505.7,0.00019999,2]
[362278536,1748148643771,-20000.0,0.00019999,2]
[362278537,1748148643781,-559.4250461,0.0002,2]
[362278538,1748148643790,-592286.73655229,0.0002,2]
[362278539,1748148643800,-552732.73486015,0.0002,2]
[362278540,1748148643810,-204213.48730124,0.0002,2]
[362278544,1748148644162,-217.39122463,0.0002,2]
[362278554,1748148717308,-250.77027836,0.00017592,2]
[362278555,1748148718779,-195.0,0.00017592,2]
[362278556,1748148724283,-19.56972164,0.00017592,2]
[362278557,1748148724306,-173.224352,0.00019599,2]
[362278558,1748148724329,-29.54592636,0.00019855,2]
[362278559,1748148725282,-173.224352,0.00019855,2]
[362278560,1748148729511,-230.49,0.00019855,2]
[362278561,1748148732074,-199.01742395,0.000177,5]
[362278562,1748148734952,-82.98257605,0.000177,5]
[362278563,1748148734980,-32.07972164,0.00019855,2]
[362278564,1748148735007,-151.0,0.00019988,2]
[362278565,1748148735036,-153.93770231,0.00019988,2]
[362278566,1748148740683,-53.46229769,0.00019988,2]
[362278567,1748148740710,-263.76897487,0.00019996,2]
[362278568,1748148744540,-250.0,0.00019996,2]
[362278569,1748148751980,-193.85,0.00019996,2]
[362278570,1748148808963,3160.37528987,0.00025999,120]
[362278571,1748148858847,-244.45434393,0.00018301,2]
[362278572,1748148863847,-190.54596244,0.00017538,2]
[362278573,1748148869616,-171.580292,0.00017538,2]
[362278574,1748148872741,-408.3968554,0.00017538,2]
[362278575,1748148878109,-306.47689016,0.00017538,2]
[362278576,1748148878132,-113.52310984,0.00017538,2]
[362278577,1748148880037,-297.77504358,0.00017538,2]
[362278578,1748148884444,-151.0,0.00017538,2]
[362278579,1748148886011,-207.4,0.00017538,2]
[362278580,1748148887548,-185.81503062,0.00017538,2]
[362278581,1748148892963,-121.48681596,0.00017538,2]
[362278582,1748148892985,-216.01472192,0.00018301,2]
[362278583,1748148894443,-380.88153536,0.00018301,2]
[362278584,1748148897063,-235.64939879,0.00018301,2]
[362278586,1748148955089,386.38,0.00013699,2]
[362278587,1748148971772,152.92,0.00021945,30]
[362278591,1748149212715,-184.35060121,0.000176,2]
[362278592,1748149215915,-21.64939879,0.000176,2]
[362278600,1748149404782,250.0,0.00015,2]
[362278601,1748149405869,300.0,0.00017,2]
[362278603,1748149595093,-318.17115908,0.00019,2]
[362278604,1748149770441,203.252,0.00017027,2]
[362278605,1748149770465,221.7791925,0.00017027,2]
[362278606,1748149770488,3.1888075,0.00017027,2]
[362278607,1748149820062,176.86,0.00015146,2]
[362278608,1748149831759,-1000.0,0.00018987,2]
[362278609,1748149831769,-31.82884092,0.00019,2]
[362278610,1748149831779,-150.0,0.00019013,7]
[362278611,1748149831789,-484.26,0.00019188,2]
[362278612,1748149831799,-172.69719186,0.00019264,2]
[362278613,1748149831818,-904.30280814,0.00019264,2]
[362278614,1748149831828,-250.0,0.0001929,2]
[362278615,1748149831837,-428.22,0.00019291,2]
[362278616,1748149831847,-336.37,0.00019315,2]
[362278617,1748149831858,-154.4,0.00019315,2]
[362278618,1748149831869,-190.23,0.000195,2]
[362278619,1748149831878,-806.0,0.000195,2]
[362278620,1748149831888,-155.901917,0.00019599,2]
[362278621,1748149831899,-170.2,0.000196,2]
[362278622,1748149831908,-733.87589394,0.00019618,2]
[362278623,1748149831918,-495.09,0.000197,2]
[362278624,1748149831928,-1200.0,0.00019725,2]
[362278625,1748149831939,-300.36,0.00019726,2]
[362278626,1748149831949,-150.0,0.00019726,2]
[362278627,1748149831960,-144.78392401,0.00019726,2]
[362278628,1748149831972,-5.21607599,0.00019726,2]
[362278629,1748149831983,-150.0,0.00019726,2]
[362278630,1748149831993,-165.54,0.00019845,2]
[362278631,1748149832003,-207.4,0.00019887,2]
[362278632,1748149832013,-271.84392401,0.000199,2]
[362278633,1748149832026,-188.28607599,0.000199,2]
[362278634,1748149832036,-151.0,0.00019988,2]
[362278635,1748149832045,-306.49478742,0.00019995,2]
[362278636,1748149832055,-460.578,0.00019995,2]
[362278637,1748149832064,-1273.8606663,0.00019996,2]
[362278638,1748149832077,-3200.09805174,0.00019996,2]
[362278639,1748149832088,-1115.16782009,0.00019996,2]
[362278641,1748149832099,-3805.15,0.00019996,2]
[362278643,1748149832111,-2095.55944519,0.00019996,2]
[362279140,1748149837755,-15687.408696,0.00019996,2]
[362279142,1748149837766,-2697.2854263,0.00019996,2]
[362279148,1748149837810,-3319.63338521,0.00019996,2]
[362279150,1748149837821,-2889.07462966,0.00019996,2]
[362279180,1748149838091,-548.99963201,0.00019996,2]
[362279183,1748149838111,-2886.86955623,0.00019996,2]
[362279185,1748149838123,-263.80749807,0.00019996,2]
[362279187,1748149838132,-1500.404395,0.00019996,2]
[362279189,1748149838142,-500.0,0.00019998,2]
[362279191,1748149838151,-57431.19222094,0.00019999,2]
[362279193,1748149838160,-420.0,0.00019999,2]
[362279195,1748149838169,-484.94,0.00019999,2]
[362279197,1748149838178,-484.94,0.00019999,2]
[362279199,1748149838187,-484.94,0.00019999,2]
[362279201,1748149838196,-484.94,0.00019999,2]
[362279203,1748149838206,-484.94,0.00019999,2]
[362279205,1748149838215,-484.94,0.00019999,2]
[362279207,1748149838225,-484.94,0.00019999,2]
[362279209,1748149838234,-484.94,0.00019999,2]
[362279211,1748149838245,-484.94,0.00019999,2]
[362279213,1748149838256,-484.94,0.00019999,2]
[362279215,1748149838265,-484.94,0.00019999,2]
[362279217,1748149838275,-484.94,0.00019999,2]
[362279219,1748149838284,-484.94,0.00019999,2]
[362279221,1748149838295,-484.94,0.00019999,2]
[362279223,1748149838304,-484.94,0.00019999,2]
[362279225,1748149838313,-484.94,0.00019999,2]
[362279227,1748149838323,-484.94,0.00019999,2]
[362279229,1748149838333,-484.94,0.00019999,2]
[362279231,1748149838342,-484.94,0.00019999,2]
[362279233,1748149838351,-484.94,0.00019999,2]
[362279235,1748149838360,-484.94,0.00019999,2]
[362279237,1748149838369,-484.94,0.00019999,2]
[362279239,1748149838378,-484.94,0.00019999,2]
[362279240,1748149838387,-485.14,0.00019999,2]
[362279242,1748149838398,-463.55,0.00019999,2]
[362279244,1748149838408,-463.55,0.00019999,2]
[362279246,1748149838417,-463.55,0.00019999,2]
[362279248,1748149838427,-463.55,0.00019999,2]
[362279250,1748149838436,-463.55,0.00019999,2]
[362279252,1748149838445,-463.55,0.00019999,2]
[362279254,1748149838454,-463.55,0.00019999,2]
[362279256,1748149838463,-463.55,0.00019999,2]
[362279258,1748149838472,-463.55,0.00019999,2]
[362279260,1748149838481,-463.55,0.00019999,2]
[362279262,1748149838490,-463.55,0.00019999,2]
[362279264,1748149838499,-463.55,0.00019999,2]
[362279266,1748149838508,-463.55,0.00019999,2]
[362279268,1748149838517,-463.55,0.00019999,2]
[362279270,1748149838526,-463.55,0.00019999,2]
[362279272,1748149838535,-463.55,0.00019999,2]
[362279274,1748149838544,-463.55,0.00019999,2]
[362279276,1748149838553,-463.55,0.00019999,2]
[362279278,1748149838563,-463.55,0.00019999,2]
[362279280,1748149838572,-463.55,0.00019999,2]
[362279282,1748149838581,-463.55,0.00019999,2]
[362279284,1748149838595,-463.55,0.00019999,2]
[362279286,1748149838604,-463.55,0.00019999,2]
[362279288,1748149838613,-463.75,0.00019999,2]
[362279290,1748149838622,-420.0,0.00019999,2]
[362279292,1748149838631,-487.84449567,0.00019999,2]
[362279294,1748149838640,-476.93153651,0.00019999,2]
[362279296,1748149838649,-420.0,0.00019999,2]
[362279298,1748149838658,-420.0,0.00019999,2]
[362279300,1748149838668,-420.0,0.00019999,2]
[362279302,1748149838677,-420.0,0.00019999,2]
[362279304,1748149838686,-420.0,0.00019999,2]
[362279306,1748149838695,-420.0,0.00019999,2]
[362279308,1748149838704,-436.83637727,0.00019999,2]
[362279310,1748149838714,-223.75915696,0.00019999,2]
[362279312,1748149838723,-233.1708273,0.00019999,2]
[362279314,1748149838732,-452.76350386,0.00019999,2]
[362279316,1748149838741,-420.0,0.00019999,2]
[362279318,1748149838751,-420.0,0.00019999,2]
[362279320,1748149838760,-420.0,0.00019999,2]
[362279322,1748149838769,-420.0,0.00019999,2]
[362279324,1748149838779,-420.0,0.00019999,2]
[362279326,1748149838788,-420.0,0.00019999,2]
[362279328,1748149838797,-420.0,0.00019999,2]
[362279330,1748149838807,-420.0,0.00019999,2]
[362279332,1748149838818,-420.0,0.00019999,2]
[362279334,1748149838827,-420.0,0.00019999,2]
[362279336,1748149838837,-420.0,0.00019999,2]
[362279338,1748149838847,-420.0,0.00019999,2]
[362279340,1748149838855,-420.0,0.00019999,2]
[362279342,1748149838865,-420.0,0.00019999,2]
[362279344,1748149838874,-420.0,0.00019999,2]
[362279346,1748149838883,-496.45929162,0.00019999,2]
[362279348,1748149838893,-420.0,0.00019999,2]
[362279350,1748149838902,-446.67911319,0.00019999,2]
[362279352,1748149838911,-420.0,0.00019999,2]
[362279354,1748149838921,-420.0,0.00019999,2]
[362279356,1748149838931,-420.0,0.00019999,2]
[362279358,1748149838940,-420.0,0.00019999,2]
[362279361,1748149838949,-349.12,0.00019999,2]
[362279362,1748149838959,-447.32236259,0.00019999,2]
[362279364,1748149838968,-456.51109403,0.00019999,2]
[362279367,1748149838977,-420.0,0.00019999,2]
[362279368,1748149838986,-154.99,0.00019999,2]
[362279370,1748149838996,-420.0,0.00019999,2]
[362279372,1748149839005,-153.9985379,0.00019999,2]
[362279374,1748149839014,-1000.0,0.00019999,2]
[362279376,1748149839023,-455.1,0.00019999,2]
[362279378,1748149839034,-444.59835917,0.00019999,2]
[362279380,1748149839043,-150.0,0.00019999,2]
[362279382,1748149839052,-500.0,0.00019999,2]
[362279384,1748149839062,-500.0,0.00019999,2]
[362279386,1748149839071,-500.0,0.00019999,2]
[362279388,1748149839082,-396.08,0.00019999,2]
[362279390,1748149839091,-420.0,0.00019999,2]
[362279392,1748149839101,-420.0,0.00019999,2]
[362279394,1748149839110,-420.0,0.00019999,2]
[362279396,1748149839119,-420.0,0.00019999,2]
[362279398,1748149839129,-420.0,0.00019999,2]
[362279401,1748149839139,-420.0,0.00019999,2]
[362279403,1748149839148,-485.93102771,0.00019999,2]
[362279405,1748149839157,-420.0,0.00019999,2]
[362279406,1748149839167,-420.0,0.00019999,2]
[362279408,1748149839176,-420.0,0.00019999,2]
[362279411,1748149839187,-420.0,0.00019999,2]
[362279412,1748149839196,-420.0,0.00019999,2]
[362279414,1748149839205,-420.0,0.00019999,2]
[362279416,1748149839215,-163.97151981,0.00019999,2]
[362279418,1748149839225,-420.0,0.00019999,2]
[362279420,1748149839234,-420.0,0.00019999,2]
[362279422,1748149839246,-420.0,0.00019999,2]
[362279424,1748149839256,-420.0,0.00019999,2]
[362279426,1748149839266,-420.0,0.00019999,2]
[362279428,1748149839275,-420.0,0.00019999,2]
[362279430,1748149839287,-436.73247672,0.00019999,2]
[362279431,1748149839296,-420.0,0.00019999,2]
[362279432,1748149839306,-420.0,0.00019999,2]
[362279433,1748149839316,-420.0,0.00019999,2]
[362279434,1748149839326,-420.0,0.00019999,2]
[362279435,1748149839335,-420.0,0.00019999,2]
[362279436,1748149839344,-420.0,0.00019999,2]
[362279437,1748149839354,-420.0,0.00019999,2]
[362279438,1748149839363,-420.0,0.00019999,2]
[362279439,1748149839372,-420.0,0.00019999,2]
[362279440,1748149839381,-420.0,0.00019999,2]
[362279441,1748149839390,-420.0,0.00019999,2]
[362279443,1748149839400,-420.0,0.00019999,2]
[362279445,1748149839410,-420.0,0.00019999,2]
[362279448,1748149839420,-471.73,0.00019999,2]
[362279450,1748149839429,-475.1412014,0.00019999,2]
[362279452,1748149839439,-420.0,0.00019999,2]
[362279454,1748149839448,-420.0,0.00019999,2]
[362279456,1748149839457,-420.0,0.00019999,2]
[362279457,1748149839467,-420.0,0.00019999,2]
[362279459,1748149839476,-420.0,0.00019999,2]
[362279462,1748149839487,-420.0,0.00019999,2]
[362279463,1748149839496,-420.0,0.00019999,2]
[362279465,1748149839505,-420.0,0.00019999,2]
[362279467,1748149839514,-420.0,0.00019999,2]
[362279469,1748149839523,-239.12,0.00019999,2]
[362279471,1748149839532,-622.95,0.00019999,2]
[362279473,1748149839542,-622.95,0.00019999,2]
[362279475,1748149839551,-622.95,0.00019999,2]
[362279477,1748149839560,-622.95,0.00019999,2]
[362279479,1748149839569,-622.95,0.00019999,2]
[362279481,1748149839579,-622.95,0.00019999,2]
[362279483,1748149839589,-622.95,0.00019999,2]
[362279486,1748149839599,-622.95,0.00019999,2]
[362279487,1748149839607,-622.95,0.00019999,2]
[362279489,1748149839617,-622.95,0.00019999,2]
[362279491,1748149839626,-622.95,0.00019999,2]
[362279494,1748149839635,-622.95,0.00019999,2]
[362279495,1748149839645,-622.95,0.00019999,2]
[362279498,1748149839656,-622.95,0.00019999,2]
[362279500,1748149839666,-622.95,0.00019999,2]
[362279501,1748149839676,-622.95,0.00019999,2]
[362279504,1748149839686,-622.95,0.00019999,2]
[362279506,1748149839695,-622.95,0.00019999,2]
[362279508,1748149839705,-622.95,0.00019999,2]
[362279510,1748149839714,-622.95,0.00019999,2]
[362279512,1748149839724,-622.95,0.00019999,2]
[362279514,1748149839733,-622.95,0.00019999,2]
[362279515,1748149839742,-622.95,0.00019999,2]
[362279517,1748149839752,-512.58,0.00019999,2]
[362279520,1748149839762,-623.16855858,0.00019999,2]
[362279521,1748149839771,-512.58,0.00019999,2]
[362279524,1748149839782,-512.58,0.00019999,2]
[362279525,1748149839791,-512.58,0.00019999,2]
[362279528,1748149839802,-512.58,0.00019999,2]
[362279529,1748149839812,-512.58,0.00019999,2]
[362279531,1748149839821,-512.58,0.00019999,2]
[362279533,1748149839830,-512.58,0.00019999,2]
[362279535,1748149839839,-512.58,0.00019999,2]
[362279537,1748149839848,-512.58,0.00019999,2]
[362279539,1748149839858,-420.0,0.00019999,2]
[362279541,1748149839867,-512.58,0.00019999,2]
[362279543,1748149839877,-420.0,0.00019999,2]
[362279545,1748149839888,-512.58,0.00019999,2]
[362279547,1748149839897,-163.70623623,0.00019999,2]
[362279550,1748149839913,-256.29376377,0.00019999,2]
[362279552,1748149839922,-512.58,0.00019999,2]
[362279554,1748149839932,-420.0,0.00019999,2]
[362279556,1748149839942,-512.58,0.00019999,2]
[362279558,1748149839951,-420.0,0.00019999,2]
[362279560,1748149839960,-512.58,0.00019999,2]
[362279562,1748149839969,-420.0,0.00019999,2]
[362279564,1748149839978,-363.50712359,0.00019999,2]
[362279566,1748149839990,-149.07287641,0.00019999,2]
[362279568,1748149839999,-495.57712359,0.00019999,2]
[362279592,1748149840211,-17.00287641,0.00019999,2]
[362279594,1748149840221,-512.58,0.00019999,2]
[362279596,1748149840230,-128.89555718,0.00019999,2]
[362279598,1748149840243,-383.68444282,0.00019999,2]
[362279600,1748149840255,-417.26896594,0.00019999,2]
[362279604,1748149840291,-95.31103406,0.00019999,2]
[362279606,1748149840301,-512.58,0.00019999,2]
[362279608,1748149840311,-512.58,0.00019999,2]
[362279610,1748149840321,-512.58,0.00019999,2]
[362279612,1748149840330,-512.7777214,0.00019999,2]
[362279614,1748149840340,-420.0,0.00019999,2]
[362279616,1748149840350,-420.0,0.00019999,2]
[362279618,1748149840359,-125.50016466,0.00019999,2]
[362279621,1748149840371,-294.49983534,0.00019999,2]
[362279623,1748149840380,-420.0,0.00019999,2]
[362279625,1748149840390,-420.0,0.00019999,2]
[362279627,1748149840400,-420.0,0.00019999,2]
[362279629,1748149840409,-420.0,0.00019999,2]
[362279631,1748149840419,-420.0,0.00019999,2]
[362279633,1748149840428,-420.0,0.00019999,2]
[362279634,1748149840438,-420.0,0.00019999,2]
[362279637,1748149840447,-420.0,0.00019999,2]
[362279639,1748149840457,-420.0,0.00019999,2]
[362279641,1748149840467,-393.75001935,0.00019999,2]
[362279643,1748149840476,-420.0,0.00019999,2]
[362279645,1748149840486,-420.0,0.00019999,2]
[362279647,1748149840495,-420.0,0.00019999,2]
[362279649,1748149840504,-420.0,0.00019999,2]
[362279651,1748149840514,-420.0,0.00019999,2]
[362279653,1748149840523,-420.0,0.00019999,2]
[362279655,1748149840532,-420.0,0.00019999,2]
[362279656,1748149840540,-420.0,0.00019999,2]
[362279658,1748149840550,-420.0,0.00019999,2]
[362279660,1748149840560,-420.0,0.00019999,2]
[362279662,1748149840569,-420.0,0.00019999,2]
[362279664,1748149840578,-522.6786466,0.00019999,2]
[362279666,1748149840587,-420.0,0.00019999,2]
[362279668,1748149840596,-420.0,0.00019999,2]
[362279670,1748149840606,-420.0,0.00019999,2]
[362279672,1748149840616,-420.0,0.00019999,2]
[362279674,1748149840625,-420.0,0.00019999,2]
[362279676,1748149840634,-420.0,0.00019999,2]
[362279678,1748149840643,-420.0,0.00019999,2]
[362279680,1748149840653,-420.0,0.00019999,2]
[362279682,1748149840662,-420.0,0.00019999,2]
[362279684,1748149840671,-420.0,0.00019999,2]
[362279686,1748149840680,-420.0,0.00019999,2]
[362279688,1748149840690,-420.0,0.00019999,2]
[362279690,1748149840700,-420.0,0.00019999,2]
[362279692,1748149840709,-420.0,0.00019999,2]
[362279694,1748149840718,-420.0,0.00019999,2]
[362279696,1748149840727,-420.0,0.00019999,2]
[362279698,1748149840736,-420.0,0.00019999,2]
[362279700,1748149840746,-420.0,0.00019999,2]
[362279702,1748149840756,-420.0,0.00019999,2]
[362279704,1748149840766,-249.50562501,0.00019999,2]
[362279706,1748149840776,-657.72,0.00019999,2]
[362279708,1748149840785,-657.72,0.00019999,2]
[362279710,1748149840795,-657.72,0.00019999,2]
[362279712,1748149840805,-657.72,0.00019999,2]
[362279714,1748149840814,-657.72,0.00019999,2]
[362279716,1748149840824,-657.72,0.00019999,2]
[362279718,1748149840833,-657.72,0.00019999,2]
[362279720,1748149840845,-657.72,0.00019999,2]
[362279722,1748149840856,-657.72,0.00019999,2]
[362279724,1748149840865,-657.72,0.00019999,2]
[362279726,1748149840875,-657.72,0.00019999,2]
[362279728,1748149840885,-657.72,0.00019999,2]
[362279730,1748149840895,-657.72,0.00019999,2]
[362279732,1748149840905,-657.72,0.00019999,2]
[362279734,1748149840914,-657.72,0.00019999,2]
[362279736,1748149840923,-657.72,0.00019999,2]
[362279738,1748149840932,-657.72,0.00019999,2]
[362279740,1748149840943,-657.72,0.00019999,2]
[362279742,1748149840952,-657.72,0.00019999,2]
[362279744,1748149840961,-657.72,0.00019999,2]
[362279746,1748149840971,-657.72,0.00019999,2]
[362279748,1748149840980,-657.72,0.00019999,2]
[362279750,1748149840990,-657.72,0.00019999,2]
[362279752,1748149840999,-657.9433,0.00019999,2]
[362279754,1748149841009,-420.0,0.00019999,2]
[362279756,1748149841019,-420.0,0.00019999,2]
[362279758,1748149841028,-420.0,0.00019999,2]
[362279760,1748149841037,-420.0,0.00019999,2]
[362279762,1748149841046,-420.0,0.00019999,2]
[362279764,1748149841056,-420.0,0.00019999,2]
[362279766,1748149841066,-420.0,0.00019999,2]
[362279768,1748149841075,-420.0,0.00019999,2]
[362279770,1748149841085,-420.0,0.00019999,2]
[362279772,1748149841094,-464.84223542,0.00019999,2]
[362279774,1748149841103,-20000.0,0.00019999,2]
[362279776,1748149841114,-559.4250461,0.0002,2]
[362279778,1748149841123,-7549.78225638,0.0002,2]
[362279781,1748149841136,-615496.06472282,0.0002,2]
[362279783,1748149841145,-914492.80311443,0.0002,2]
[362279811,1748149841416,-904.89361379,0.0002,2]
[362279813,1748149841428,-11434.99265862,0.0002,2]
[362279816,1748149841442,-893.87818263,0.0002,2]
[362279871,1748149842792,-633.2,0.0002,2]
[362279876,1748149842879,-35.35235104,0.0002,2]
[362279877,1748149842906,-5900.11867625,0.0002,2]